Workbook

Sheet Val
B2: Uppgraderingsanläggning
B4: Samtliga utsläppskällor på anläggningen ges en identifikation i listan.
B5: OBS Detta gäller även utsläppskällor med nollutsläpp, dvs där metan inte kunnat detekteras (sätt metanhalten till 0 i beräkningar och kommentera i respektive resultatflik).
B7: Beräkningsmetod | C7: EgMet nomenklatur | D7: Array | E7: Ev. lokal benämning/tag | J7: EgMet nomenklatur lista
B8: Analysinstrument | D8: =IF(C8<>"",1,0) -> 0 | J8: Analysinstrument
B9: Ventilation 1 | D9: 0 | J9: Processventilation
B10: Ventilation 2 | D10: 0 | J10: Metanslip
B11: Ventilation 3 | D11: 0 | J11: Övrigt
B12: Ventilation 4 | D12: 0
B13: Ventilation 5 | D13: 0
B14: Metanslip | D14: 0
B15: Utsläpp (Nm3/år) 1 | D15: 0
B16: Utsläpp (Nm3/år) 2 | D16: 0
B17: Utsläpp (Nm3/h) 1 | D17: 0
B18: Utsläpp (Nm3/h) 2 | D18: 0
B23: Utskrift

Sheet Beräkningar
A1: indata och konstanter | E1: UPPGRADERINGSANLÄGGNING | J1: vers. 3.1
A2: beräknade data
A3: slutresultat | E3: =IF(IterativAktiv(),"","Iterativ beräkning är ej aktiverad!") -> 
A5: PRODUKTIONSDATA | E5: RÅGAS | G5: RENGAS | I5: RÅGAS ber | J5: CO2 ber
A6: Q (gasflöde) | B6: Nm3/h | E6: 1000 | G6: 600 | I6: =G6*G7/100/E7*100 -> 1000 | J6: =(100-E7)/100*I6 -> 400
A7: CH4 (metanhalt) | B7: vol-% | E7: 60 | G7: 100
A8: Momentant metanflöde | B8: Nm3 CH4/h | E8: =E6*E7/100 -> 600 | G8: =G6*G7/100 -> 600
A9: Årsflöde gas | B9: Nm3/år | E9: 100000 | G9: 60000
A10: Metanhalt årsmedel | B10: vol-% | E10: 1 | G10: 100
A11: Totalt genomflöde | B11: Nm3 CH4/år | E11: =E9*E10/100 -> 1000 | G11: =G9*G10/100 -> 60000
A12: Drifttimmar per år | B12: h/år
A14: FÖRLUSTER | E14: RÅGAS | G14: RENGAS | P14: Ventilation val | Q14: Metanhalt val
A15: Momentan förlust | B15: Nm3 CH4/h | E15: =C26*Val!D8+C51*Val!D9+C76*Val!D10+C101*Val!D11+C126*Val!D12+C151*Val!D13+C176*Val!D14+E188*Val!D15+E200*Val!D16+C212*Val!D17+C224*Val!D18 -> 0 | G15: =C26*Val!D8+C51*Val!D9+C76*Val!D10+C101*Val!D11+C126*Val!D12+C151*Val!D13+C176*Val!D14+G188*Val!D15+G200*Val!D16+C212*Val!D17+C224*Val!D18 -> 0 | I15: Uppdatera formeln i E15 och G15 om fler utsläppspunkter läggs till manuellt | P15: Mätning av flöde | Q15: online
A16: Momentan förlust | B16: % | E16: =E15/$E$8*100 -> 0 | G16: =G15/($G$8+G15)*100 -> 0 | P16: Fläktdata m3/h | Q16: påsprov
A17: Årlig förlust | B17: Nm3 CH4/år | E17: =C30*Val!D8+E55*Val!D9+E80*Val!D10+E105*Val!D11+E130*Val!D12+E155*Val!D13+E180*Val!D14+E192*Val!D15+E204*Val!D16+E216*Val!D17+E228*Val!D18 -> 0 | G17: =C30*Val!D8+G55*Val!D9+G80*Val!D10+G105*Val!D11+G130*Val!D12+G155*Val!D13+G180*Val!D14+G192*Val!D15+G204*Val!D16+G216*Val!D17+G228*Val!D18 -> 0 | I17: Uppdatera formeln i E17 och G17 om fler utsläppspunkter läggs till manuellt | P17: Schablon 3000 Nm3/h
A18: Årlig förlust | B18: % | E18: =E17/$E$11*100 -> 0 | G18: =G17/($G$11+G17)*100 -> 0 | P18: Schablon 6000 Nm3/h
A20: ANALYSINSTRUMENT | B20: =Val!C8 -> 0 | D20: =Val!E8 -> 0
A21: INDATA
A22: Qutsläpp Rågas | B22: lpm (l/min)
A23: Qutsläpp Rengas | B23: lpm (l/min)
A24: RESULTAT
A25: Qutsläpp | B25: l/h | C25: =C22*60+C23*60 -> 0
A26: Momentant utsläpp | B26: Nm3 CH4/h | C26: =$E$7/100*C22*60/1000+$G$7/100*C23*60/1000 -> 0 | E26: RÅGAS | G26: RENGAS
A27: Momentant metanflöde | B27: Nm3 CH4/h | E27: =$E$8 -> 600 | G27: =$G$8+$G$15 -> 600
A28: Momentan förlust | B28: % | E28: =100*C26/$E$8 -> 0 | G28: =100*C26/($G$8+$G$15) -> 0
A29: ÅRSVÄRDEN
A30: Årligt utsläpp | B30: Nm3 CH4/år | C30: =($E$10/100*C22*60/1000+$G$10/100*C23*60/1000)*$E$12 -> 0
A31: Årligt metanflöde | B31: Nm3 CH4/år | E31: =$E$11 -> 1000 | G31: =$G$11+$G$17 -> 60000
A32: Årlig förlust | B32: % | E32: =100*C30/E31 -> 0 | G32: =100*C30/G31 -> 0
A34: VENTILATION 1 | B34: =Val!C9 -> 0 | D34: =Val!E9 -> 0
A35: INDATA
A36: CH4(utsläpp) | B36: ppm | E36: online
A37: Tutsläpp | B37: ºC | E37: tid (min):
A38: Differenstryck, pd | B38: Pa | E38: Mätning av flöde
A39: Gashastighet | B39: m/s
A40: Rör diameter | B40: cm
A41: KONSTANTER
A42: putsläpp | B42: kPa | C42: 101.3
A43: Luft densitet | B43: kg/Nm3 | C43: 1.29
A44: RESULTAT
A45: Luft densitet | B45: kg/m3 | C45: =C43*C42/101.3*273.15/(273.15+C37) -> 1.29
A46: Rör area | B46: m2 | C46: =(C40/100)^2*0.25*PI() -> 0
A47: Gashastighet | B47: m/s | C47: =IF(AND(C38="",C39=""),0,IF(AND(C38<>"",C39<>""),99999,IF(C38="",C39,SQRT(2*C38/C45)))) -> 0 | E47: =IF(C47=99999,"Ange Pa eller m/s!","") -> 
A48: Qutsläpp | B48: l/s | C48: =C46*C47*1000 -> 0
A49: Qutsläpp | B49: m3/h | C49: =IF(E38="Fläktdata m3/h",E39,C48/1000*60*60) -> 0
A50: Qutsläpp | B50: Nm3/h | C50: =IF(E38="Schablon 3000 Nm3/h",3000,IF(E38="Schablon 6000 Nm3/h",6000,C49*C42/101.3*273.15/(273.15+C37))) -> 0
A51: Momentant utsläpp | B51: Nm3 CH4/h | C51: =C50*C36/1000000 -> 0 | E51: RÅGAS | G51: RENGAS
A52: Momentant metanflöde | B52: Nm3 CH4/h | E52: =$E$8 -> 600 | G52: =$G$8+$G$15 -> 600
A53: Momentan förlust | B53: % | E53: =100*C51/$E$8 -> 0 | G53: =100*C51/($G$8+$G$15) -> 0
A54: ÅRSVÄRDEN | B54: Skalning: | C54: h | F54: =IF(AND(C54="d",E54=""),"Ange drifttid!","") -> 
A55: Årligt utsläpp | B55: Nm3 CH4/år | E55: =IF(C54="p",E53/100*E56,IF(C54="h",C51*$E$12,IF(C54="d",C51*E54,0))) -> 0 | G55: =IF(C54="p",G53/100*G56,IF(C54="h",C51*$E$12,IF(C54="d",C51*E54,0))) -> 0
A56: Årligt metanflöde | B56: Nm3 CH4/år | E56: =$E$11 -> 1000 | G56: =$G$11+$G$17 -> 60000
A57: Årlig förlust | B57: % | E57: =100*E55/E56 -> 0 | G57: =100*G55/G56 -> 0
A59: VENTILATION 2 | B59: =Val!C10 -> 0 | D59: =Val!E10 -> 0
A60: INDATA
A61: CH4(utsläpp) | B61: ppm | E61: online
A62: Tutsläpp | B62: ºC | E62: tid (min):
A63: Differenstryck, pd | B63: Pa | E63: Mätning av flöde
A64: Gashastighet | B64: m/s
A65: Rör diameter | B65: cm
A66: KONSTANTER
A67: putsläpp | B67: kPa | C67: 101.3
A68: Luft densitet | B68: kg/Nm3 | C68: 1.29
A69: RESULTAT
A70: Luft densitet | B70: kg/m3 | C70: =C68*C67/101.3*273.15/(273.15+C62) -> 1.29
A71: Rör area | B71: m2 | C71: =(C65/100)^2*0.25*PI() -> 0
A72: Gashastighet | B72: m/s | C72: =IF(AND(C63="",C64=""),0,IF(AND(C63<>"",C64<>""),99999,IF(C63="",C64,SQRT(2*C63/C70)))) -> 0 | E72: =IF(C72=99999,"Ange Pa eller m/s!","") -> 
A73: Qutsläpp | B73: l/s | C73: =C71*C72*1000 -> 0
A74: Qutsläpp | B74: m3/h | C74: =IF(E63="Fläktdata m3/h",E64,C73/1000*60*60) -> 0
A75: Qutsläpp | B75: Nm3/h | C75: =IF(E63="Schablon 3000 Nm3/h",3000,IF(E63="Schablon 6000 Nm3/h",6000,C74*C67/101.3*273.15/(273.15+C62))) -> 0
A76: Momentant utsläpp | B76: Nm3 CH4/h | C76: =C75*C61/1000000 -> 0 | E76: RÅGAS | G76: RENGAS
A77: Momentant metanflöde | B77: Nm3 CH4/h | E77: =$E$8 -> 600 | G77: =$G$8+$G$15 -> 600
A78: Momentan förlust | B78: % | E78: =100*C76/$E$8 -> 0 | G78: =100*C76/($G$8+$G$15) -> 0
A79: ÅRSVÄRDEN | B79: Skalning: | C79: h | F79: =IF(AND(C79="d",E79=""),"Ange drifttid!","") -> 
A80: Årligt utsläpp | B80: Nm3 CH4/år | E80: =IF(C79="p",E78/100*E81,IF(C79="h",C76*$E$12,IF(C79="d",C76*E79,0))) -> 0 | G80: =IF(C79="p",G78/100*G81,IF(C79="h",C76*$E$12,IF(C79="d",C76*E79,0))) -> 0
A81: Årligt metanflöde | B81: Nm3 CH4/år | E81: =$E$11 -> 1000 | G81: =$G$11+$G$17 -> 60000
A82: Årlig förlust | B82: % | E82: =100*E80/E81 -> 0 | G82: =100*G80/G81 -> 0
A84: VENTILATION 3 | B84: =Val!C11 -> 0 | D84: =Val!E11 -> 0
A85: INDATA
A86: CH4(utsläpp) | B86: ppm | E86: online
A87: Tutsläpp | B87: ºC | E87: tid (min):
A88: Differenstryck, pd | B88: Pa | E88: Mätning av flöde
A89: Gashastighet | B89: m/s
A90: Rör diameter | B90: cm
A91: KONSTANTER
A92: putsläpp | B92: kPa | C92: 101.3
A93: Luft densitet | B93: kg/Nm3 | C93: 1.29
A94: RESULTAT
A95: Luft densitet | B95: kg/m3 | C95: =C93*C92/101.3*273.15/(273.15+C87) -> 1.29
A96: Rör area | B96: m2 | C96: =(C90/100)^2*0.25*PI() -> 0
A97: Gashastighet | B97: m/s | C97: =IF(AND(C88="",C89=""),0,IF(AND(C88<>"",C89<>""),99999,IF(C88="",C89,SQRT(2*C88/C95)))) -> 0 | E97: =IF(C97=99999,"Ange Pa eller m/s!","") -> 
A98: Qutsläpp | B98: l/s | C98: =C96*C97*1000 -> 0
A99: Qutsläpp | B99: m3/h | C99: =IF(E88="Fläktdata m3/h",E89,C98/1000*60*60) -> 0
A100: Qutsläpp | B100: Nm3/h | C100: =IF(E88="Schablon 3000 Nm3/h",3000,IF(E88="Schablon 6000 Nm3/h",6000,C99*C92/101.3*273.15/(273.15+C87))) -> 0
A101: Momentant utsläpp | B101: Nm3 CH4/h | C101: =C100*C86/1000000 -> 0 | E101: RÅGAS | G101: RENGAS
A102: Momentant metanflöde | B102: Nm3 CH4/h | E102: =$E$8 -> 600 | G102: =$G$8+$G$15 -> 600
A103: Momentan förlust | B103: % | E103: =100*C101/$E$8 -> 0 | G103: =100*C101/($G$8+$G$15) -> 0
A104: ÅRSVÄRDEN | B104: Skalning: | C104: h | F104: =IF(AND(C104="d",E104=""),"Ange drifttid!","") -> 
A105: Årligt utsläpp | B105: Nm3 CH4/år | E105: =IF(C104="p",E103/100*E106,IF(C104="h",C101*$E$12,IF(C104="d",C101*E104,0))) -> 0 | G105: =IF(C104="p",G103/100*G106,IF(C104="h",C101*$E$12,IF(C104="d",C101*E104,0))) -> 0
A106: Årligt metanflöde | B106: Nm3 CH4/år | E106: =$E$11 -> 1000 | G106: =$G$11+$G$17 -> 60000
A107: Årlig förlust | B107: % | E107: =100*E105/E106 -> 0 | G107: =100*G105/G106 -> 0
A109: VENTILATION 4 | B109: =Val!C12 -> 0 | D109: =Val!E12 -> 0
A110: INDATA
A111: CH4(utsläpp) | B111: ppm | E111: online
A112: Tutsläpp | B112: ºC | E112: tid (min):
A113: Differenstryck, pd | B113: Pa | E113: Mätning av flöde
A114: Gashastighet | B114: m/s
A115: Rör diameter | B115: cm
A116: KONSTANTER
A117: putsläpp | B117: kPa | C117: 101.3
A118: Luft densitet | B118: kg/Nm3 | C118: 1.29
A119: RESULTAT
A120: Luft densitet | B120: kg/m3 | C120: =C118*C117/101.3*273.15/(273.15+C112) -> 1.29
A121: Rör area | B121: m2 | C121: =(C115/100)^2*0.25*PI() -> 0
A122: Gashastighet | B122: m/s | C122: =IF(AND(C113="",C114=""),0,IF(AND(C113<>"",C114<>""),99999,IF(C113="",C114,SQRT(2*C113/C120)))) -> 0 | E122: =IF(C122=99999,"Ange Pa eller m/s!","") -> 
A123: Qutsläpp | B123: l/s | C123: =C121*C122*1000 -> 0
A124: Qutsläpp | B124: m3/h | C124: =IF(E113="Fläktdata m3/h",E114,C123/1000*60*60) -> 0
A125: Qutsläpp | B125: Nm3/h | C125: =IF(E113="Schablon 3000 Nm3/h",3000,IF(E113="Schablon 6000 Nm3/h",6000,C124*C117/101.3*273.15/(273.15+C112))) -> 0
A126: Momentant utsläpp | B126: Nm3 CH4/h | C126: =C125*C111/1000000 -> 0 | E126: RÅGAS | G126: RENGAS
A127: Momentant metanflöde | B127: Nm3 CH4/h | E127: =$E$8 -> 600 | G127: =$G$8+$G$15 -> 600
A128: Momentan förlust | B128: % | E128: =100*C126/$E$8 -> 0 | G128: =100*C126/($G$8+$G$15) -> 0
A129: ÅRSVÄRDEN | B129: Skalning: | C129: h | F129: =IF(AND(C129="d",E129=""),"Ange drifttid!","") -> 
A130: Årligt utsläpp | B130: Nm3 CH4/år | E130: =IF(C129="p",E128/100*E131,IF(C129="h",C126*$E$12,IF(C129="d",C126*E129,0))) -> 0 | G130: =IF(C129="p",G128/100*G131,IF(C129="h",C126*$E$12,IF(C129="d",C126*E129,0))) -> 0
A131: Årligt metanflöde | B131: Nm3 CH4/år | E131: =$E$11 -> 1000 | G131: =$G$11+$G$17 -> 60000
A132: Årlig förlust | B132: % | E132: =100*E130/E131 -> 0 | G132: =100*G130/G131 -> 0
A134: VENTILATION 5 | B134: =Val!C13 -> 0 | D134: =Val!E13 -> 0
A135: INDATA
A136: CH4(utsläpp) | B136: ppm | E136: online
A137: Tutsläpp | B137: ºC | E137: tid (min):
A138: Differenstryck, pd | B138: Pa | E138: Mätning av flöde
A139: Gashastighet | B139: m/s
A140: Rör diameter | B140: cm
A141: KONSTANTER
A142: putsläpp | B142: kPa | C142: 101.3
A143: Luft densitet | B143: kg/Nm3 | C143: 1.29
A144: RESULTAT
A145: Luft densitet | B145: kg/m3 | C145: =C143*C142/101.3*273.15/(273.15+C137) -> 1.29
A146: Rör area | B146: m2 | C146: =(C140/100)^2*0.25*PI() -> 0
A147: Gashastighet | B147: m/s | C147: =IF(AND(C138="",C139=""),0,IF(AND(C138<>"",C139<>""),99999,IF(C138="",C139,SQRT(2*C138/C145)))) -> 0 | E147: =IF(C147=99999,"Ange Pa eller m/s!","") -> 
A148: Qutsläpp | B148: l/s | C148: =C146*C147*1000 -> 0
A149: Qutsläpp | B149: m3/h | C149: =IF(E138="Fläktdata m3/h",E139,C148/1000*60*60) -> 0
A150: Qutsläpp | B150: Nm3/h | C150: =IF(E138="Schablon 3000 Nm3/h",3000,IF(E138="Schablon 6000 Nm3/h",6000,C149*C142/101.3*273.15/(273.15+C137))) -> 0
A151: Momentant utsläpp | B151: Nm3 CH4/h | C151: =C150*C136/1000000 -> 0 | E151: RÅGAS | G151: RENGAS
A152: Momentant metanflöde | B152: Nm3 CH4/h | E152: =$E$8 -> 600 | G152: =$G$8+$G$15 -> 600
A153: Momentan förlust | B153: % | E153: =100*C151/$E$8 -> 0 | G153: =100*C151/($G$8+$G$15) -> 0
A154: ÅRSVÄRDEN | B154: Skalning: | C154: h | F154: =IF(AND(C154="d",E154=""),"Ange drifttid!","") -> 
A155: Årligt utsläpp | B155: Nm3 CH4/år | E155: =IF(C154="p",E153/100*E156,IF(C154="h",C151*$E$12,IF(C154="d",C151*E154,0))) -> 0 | G155: =IF(C154="p",G153/100*G156,IF(C154="h",C151*$E$12,IF(C154="d",C151*E154,0))) -> 0
A156: Årligt metanflöde | B156: Nm3 CH4/år | E156: =$E$11 -> 1000 | G156: =$G$11+$G$17 -> 60000
A157: Årlig förlust | B157: % | E157: =100*E155/E156 -> 0 | G157: =100*G155/G156 -> 0
A159: METANSLIP | B159: Flöde: | C159: u | E159: =IF(AND(C159<>"u",C159<>"b"),"Ange 'u' eller 'b'!","") -> 
A160: INDATA
A161: CH4(utsläpp) | B161: ppm | C161: 1000 | E161: online
A162: Tutsläpp | B162: ºC | E162: tid (min):
A163: Differenstryck, pd | B163: Pa | C163: 5
A164: Gashastighet | B164: m/s
A165: Rör diameter | B165: cm | C165: 10
A166: KONSTANTER
A167: putsläpp | B167: kPa | C167: 101.3
A168: Luft densitet | B168: kg/Nm3 | C168: 1.29
A169: RESULTAT
A170: Luft densitet | B170: kg/m3 | C170: =C168*C167/101.3*273.15/(273.15+C162) -> 1.29
A171: Rör area | B171: m2 | C171: =(C165/100)^2*0.25*PI() -> 0.007853981634
A172: Gashastighet | B172: m/s | C172: =IF(AND(C163="",C164=""),0,IF(AND(C163<>"",C164<>""),99999,IF(C163="",C164,SQRT(2*C163/C170)))) -> 2.784230232 | E172: =IF(C172=99999,"Ange Pa eller m/s!","") -> 
A173: Qutsläpp | B173: l/s | C173: =C172*C171*1000 -> 21.86729311
A174: Qutsläpp | B174: m3/h | C174: =C173/1000*60*60 -> 78.72225518
A175: Qutsläpp | B175: Nm3/h | C175: =C174*C167/101.3*273.15/(273.15+C162) -> 78.72225518
A176: Momentant utsläpp | B176: Nm3 CH4/h | C176: =IF(C159="u",C175*C161/1000000,IF(C159="b",$J$6*C161/1000000,0)) -> 0.07872225518 | E176: RÅGAS | G176: RENGAS
A177: Momentant metanflöde | B177: Nm3 CH4/h | E177: =$E$8 -> 600 | G177: =$G$8+$G$15 -> 600
A178: Momentan förlust | B178: % | E178: =C176/$E$8*100 -> 0.01312037586 | G178: =C176/($G$8+$G$15)*100 -> 0.01312037586
A179: ÅRSVÄRDEN | B179: Skalning: | C179: p | F179: =IF(AND(C179="d",E179=""),"Ange drifttid!","") -> 
A180: Årligt utsläpp | B180: Nm3 CH4/år | E180: =IF(C179="p",E178/100*E181,IF(C179="h",C176*$E$12,IF(C179="d",C176*E179,0))) -> 0.1312037586 | G180: =IF(C179="p",G178/100*G181,IF(C179="h",C176*$E$12,IF(C179="d",C176*E179,0))) -> 7.872225518
A181: Årligt metanflöde | B181: Nm3 CH4/år | E181: =$E$11 -> 1000 | G181: =$G$11+$G$17 -> 60000
A182: Årlig förlust | B182: % | E182: =100*E180/E181 -> 0.01312037586 | G182: =100*G180/G181 -> 0.01312037586
A184: UTSLÄPP (Nm3/år) 1 | B184: =Val!C15 -> 0 | D184: =Val!E15 -> 0
A185: INDATA
A186: Utsläpp | B186: Nm3 CH4/år
A187: RESULTAT | B187: Skalning: | E187: RÅGAS | G187: RENGAS
A188: Momentant utsläpp | B188: Nm3 CH4/h | E188: =IF(C187="p",E194/100*$E$8,IF(C187="h",C186/$E$12,0)) -> 0 | G188: =IF(C187="p",G194/100*($G$8+$G$15),IF(C187="h",C186/$E$12,0)) -> 0
A189: Momentant metanflöde | B189: Nm3 CH4/h | E189: =$E$8 -> 600 | G189: =$G$8+$G$15 -> 600
A190: Momentan förlust | B190: % | E190: =E188/$E$8*100 -> 0 | G190: =G188/($G$8+$G$15)*100 -> 0
A191: ÅRSVÄRDEN
A192: Årligt utsläpp | B192: Nm3 CH4/år | E192: =C186 -> 0 | G192: =C186 -> 0
A193: Årligt metanflöde | B193: Nm3 CH4/år | E193: =$E$11 -> 1000 | G193: =$G$11+$G$17 -> 60000
A194: Årlig förlust | B194: % | E194: =100*E192/E193 -> 0 | G194: =100*G192/G193 -> 0
A196: UTSLÄPP (Nm3/år) 2 | B196: =Val!C16 -> 0 | D196: =Val!E16 -> 0
A197: INDATA
A198: Utsläpp | B198: Nm3 CH4/år
A199: RESULTAT | B199: Skalning: | E199: RÅGAS | G199: RENGAS
A200: Momentant utsläpp | B200: Nm3 CH4/h | E200: =IF(C199="p",E206/100*$E$8,IF(C199="h",C198/$E$12,0)) -> 0 | G200: =IF(C199="p",G206/100*($G$8+$G$15),IF(C199="h",C198/$E$12,0)) -> 0
A201: Momentant metanflöde | B201: Nm3 CH4/h | E201: =$E$8 -> 600 | G201: =$G$8+$G$15 -> 600
A202: Momentan förlust | B202: % | E202: =E200/$E$8*100 -> 0 | G202: =G200/($G$8+$G$15)*100 -> 0
A203: ÅRSVÄRDEN
A204: Årligt utsläpp | B204: Nm3 CH4/år | E204: =C198 -> 0 | G204: =C198 -> 0
A205: Årligt metanflöde | B205: Nm3 CH4/år | E205: =$E$11 -> 1000 | G205: =$G$11+$G$17 -> 60000
A206: Årlig förlust | B206: % | E206: =100*E204/E205 -> 0 | G206: =100*G204/G205 -> 0
A208: UTSLÄPP (Nm3/h) 1 | B208: =Val!C17 -> 0 | D208: =Val!E17 -> 0
A209: INDATA
A210: Utsläpp | B210: Nm3 CH4/h
A211: RESULTAT
A212: Momentant utsläpp | B212: Nm3 CH4/h | C212: =C210 -> 0 | E212: RÅGAS | G212: RENGAS
... 20 more rows

Sheet Sid 1
B2: Rapport version
B3: Utgåva
B4: Datum
B6: Anläggning
B7: Anläggningsnamn
B8: Adress
B9: Anläggningstyp
B10: Huvudman/ägare
B11: Kontaktperson
B12: Telefon
B13: Email
B15: Utförare av mätning
B16: Företag
B17: Utförare
B18: Telefon
B19: Email
B21: Genomförande av mätning
B22: Mätdatum
B23: Tid
B24: Väderförhållanden
B25: Omgivningstemperatur
B26: Mätinstrument (metan)
B27: Kalibreringsgaser
B28: Mätinstrument (gasflöde)
B29: Kommentar rörande mätning
B31: Läcksökning
B32: Finns rutin?
B33: Intervall
B34: Utrustning
B35: Utfört enligt rutin?
B36: (forts.)
B39: PRODUKTIONSDATA
B40: Driftförhållanden vid mätning
B41: Rågasflöde (Nm3/h) | C41: =Beräkningar!E6 -> 1000
B42: Rågas metanhalt (vol-%) | C42: =Beräkningar!E7 -> 60
B43: Rengasflöde (Nm3/h) | C43: =Beräkningar!G6 -> 600
B44: Rengas metanhalt (vol-%) | C44: =Beräkningar!G7 -> 100
B45: Kommentar kring driften | C45: Normal
B47: Data gällande årsproduktion
B48: Behandlad rågas (Nm3/år) | C48: =Beräkningar!E9 -> 100000
B49: Rågas metanhalt (vol-%) | C49: =Beräkningar!E10 -> 1
B50: Producerad rengas (Nm3/år) | C50: =Beräkningar!G9 -> 60000
B51: Rengas metanhalt (vol-%) | C51: =Beräkningar!G10 -> 100

Sheet Analysinstrument
B2: Identifikation av utsläppsobjekt
B3: =Val!C8 -> 0
B4: Beskrivning av utsläppsobjekt
B5: Ett litet flöde gas leds kontinuerligt genom anläggningens gasanalysinstrument och vidare till atmosfär.
B6: X st rågasflöden och X st rengasflöden har identifierats i anläggningen.
B7: Beskrivning av mätningens genomförande
B8: Analyspanelens rotametrar har avlästs.
B9: Momentant utsläpp och beräknad förlust (Nm3 CH4/h)
B10: Beräkning sker på momentana (avlästa) värden av metanhalt.
B11: Qutsläpp | C11: l/h | D11: =Beräkningar!C25 -> 0
B12: Momentant utsläpp | C12: Nm3 CH4/h | D12: =Beräkningar!C26 -> 0
B13: Momentant metanflöde | C13: Nm3 CH4/h | F13: =Beräkningar!E27 -> 600 | H13: =Beräkningar!G27 -> 600
B14: Momentan förlust | C14: % | F14: =Beräkningar!E28 -> 0 | H14: =Beräkningar!G28 -> 0
B15: Beräknad kvantifiering av årliga utsläpp (Nm3 CH4/år)
B16: Beräkning sker på årsmedelvärden av metanhalt.
B18: Årligt utsläpp | C18: Nm3 CH4/år | D18: =Beräkningar!C30 -> 0
B19: Årligt metanflöde | C19: Nm3 CH4/år | F19: =Beräkningar!E31 -> 1000 | H19: =Beräkningar!G31 -> 60000
B20: Årlig förlust | C20: % | F20: =Beräkningar!E32 -> 0 | H20: =Beräkningar!G32 -> 0
B21: Förslag på åtgärd
B22: Se till att flödena inte är högre än nödvändigt.

Sheet Ventilation 1
B2: Identifikation av utsläppsobjekt | D2: Ev. lokal benämning/tag
B3: =Val!C9 -> 0 | D3: =IF(Val!E9="","-",Val!E9) -> -
B4: Beskrivning av utsläppsobjekt
B7: Beskrivning av mätningens genomförande
B8: =_xlfn.SWITCH(Beräkningar!E36,"online",CONCATENATE("Metanhalt är uppmätt kontinuerligt med FID under ",TEXT(Beräkningar!F37,0)," min."),"påsprov",CONCATENATE("Metanhalt är uppmätt med FID i påsprov med provtagningstid ",TEXT(Beräkningar!F37,0)," min")) -> Metanhalt är uppmätt kontinuerligt med FID under 0 min.
B9: =_xlfn.SWITCH(Beräkningar!E38,"Schablon 3000 Nm3/h","Flödet är satt till schablonvärde 3000 Nm3/h.","Schablon 6000 Nm3/h","Flödet är satt till schablonvärde 6000 Nm3/h.","Fläktdata m3/h","Flödet är antaget utifrån fläktdata.","Mätning av flöde",IF(Beräkningar!C38="","Flödet är uppmätt med varmtrådsgivare.","Flödet är uppmätt med pitotrör.")) -> Flödet är uppmätt med varmtrådsgivare.
B10: Momentant utsläpp och beräknad förlust (Nm3 CH4/h)
B11: CH4(utsläpp) | C11: ppm | D11: =Beräkningar!C36 -> 0
B12: Qutsläpp | C12: Nm3/h | D12: =Beräkningar!C50 -> 0
B13: Momentant utsläpp | C13: Nm3 CH4/h | D13: =Beräkningar!C51 -> 0
B14: Momentant metanflöde | C14: Nm3 CH4/h | F14: =Beräkningar!E52 -> 600 | H14: =Beräkningar!G52 -> 600
B15: Momentan förlust | C15: % | F15: =Beräkningar!E53 -> 0 | H15: =Beräkningar!G57 -> 0
B16: Beräknad kvantifiering av årliga utsläpp (Nm3 CH4/år)
B17: =_xlfn.SWITCH(Beräkningar!C54,"p","Utsläppet antas variera relativt produktionen i anläggningen","h","Utsläppet antas vara konstant under årets alla drifttimmar för anläggningen","d","Utsläppet antas vara konstant under delanläggningens/utsläppspunktens drifttimmar") -> Utsläppet antas vara konstant under årets alla drifttimmar för anläggningen
B19: Årligt utsläpp | C19: Nm3 CH4/år | F19: =Beräkningar!E55 -> 0 | H19: =Beräkningar!G55 -> 0
B20: Årligt metanflöde | C20: Nm3 CH4/år | F20: =Beräkningar!E56 -> 1000 | H20: =Beräkningar!G56 -> 60000
B21: Årlig förlust | C21: % | F21: =Beräkningar!E57 -> 0 | H21: =Beräkningar!G57 -> 0
B22: Förslag på åtgärd
B23: Läcksökning och åtgärdande av funna läckor.

Sheet Ventilation 2
B2: Identifikation av utsläppsobjekt | D2: Ev. lokal benämning/tag
B3: =Val!C10 -> 0 | D3: =IF(Val!E10="","-",Val!E10) -> -
B4: Beskrivning av utsläppsobjekt
B7: Beskrivning av mätningens genomförande
B8: =_xlfn.SWITCH(Beräkningar!E61,"online",CONCATENATE("Metanhalt är uppmätt kontinuerligt med FID under ",TEXT(Beräkningar!F62,0)," min."),"påsprov",CONCATENATE("Metanhalt är uppmätt med FID i påsprov med provtagningstid ",TEXT(Beräkningar!F62,0)," min")) -> Metanhalt är uppmätt kontinuerligt med FID under 0 min.
B9: =_xlfn.SWITCH(Beräkningar!E63,"Schablon 3000 Nm3/h","Flödet är satt till schablonvärde 3000 Nm3/h.","Schablon 6000 Nm3/h","Flödet är satt till schablonvärde 6000 Nm3/h.","Fläktdata m3/h","Flödet är antaget utifrån fläktdata.","Mätning av flöde",IF(Beräkningar!C63="","Flödet är uppmätt med varmtrådsgivare.","Flödet är uppmätt med pitotrör.")) -> Flödet är uppmätt med varmtrådsgivare.
B10: Momentant utsläpp och beräknad förlust (Nm3 CH4/h)
B11: CH4(utsläpp) | C11: ppm | D11: =Beräkningar!C61 -> 0
B12: Qutsläpp | C12: Nm3/h | D12: =Beräkningar!C75 -> 0
B13: Momentant utsläpp | C13: Nm3 CH4/h | D13: =Beräkningar!C76 -> 0
B14: Momentant metanflöde | C14: Nm3 CH4/h | F14: =Beräkningar!E77 -> 600 | H14: =Beräkningar!G77 -> 600
B15: Momentan förlust | C15: % | F15: =Beräkningar!E78 -> 0 | H15: =Beräkningar!G78 -> 0
B16: Beräknad kvantifiering av årliga utsläpp (Nm3 CH4/år)
B17: =_xlfn.SWITCH(Beräkningar!C79,"p","Utsläppet antas variera relativt produktionen i anläggningen","h","Utsläppet antas vara konstant under årets alla drifttimmar för anläggningen","d","Utsläppet antas vara konstant under delanläggningens/utsläppspunktens drifttimmar") -> Utsläppet antas vara konstant under årets alla drifttimmar för anläggningen
B19: Årligt utsläpp | C19: Nm3 CH4/år | F19: =Beräkningar!E80 -> 0 | H19: =Beräkningar!G80 -> 0
B20: Årligt metanflöde | C20: Nm3 CH4/år | F20: =Beräkningar!E81 -> 1000 | H20: =Beräkningar!G81 -> 60000
B21: Årlig förlust | C21: % | F21: =Beräkningar!E82 -> 0 | H21: =Beräkningar!G82 -> 0
B22: Förslag på åtgärd
B23: Läcksökning och åtgärdande av funna läckor.

Sheet Ventilation 3
B2: Identifikation av utsläppsobjekt | D2: Ev. lokal benämning/tag
B3: =Val!C11 -> 0 | D3: =IF(Val!E11="","-",Val!E11) -> -
B4: Beskrivning av utsläppsobjekt
B7: Beskrivning av mätningens genomförande
B8: =_xlfn.SWITCH(Beräkningar!E86,"online",CONCATENATE("Metanhalt är uppmätt kontinuerligt med FID under ",TEXT(Beräkningar!F87,0)," min."),"påsprov",CONCATENATE("Metanhalt är uppmätt med FID i påsprov med provtagningstid ",TEXT(Beräkningar!F87,0)," min")) -> Metanhalt är uppmätt kontinuerligt med FID under 0 min.
B9: =_xlfn.SWITCH(Beräkningar!E88,"Schablon 3000 Nm3/h","Flödet är satt till schablonvärde 3000 Nm3/h.","Schablon 6000 Nm3/h","Flödet är satt till schablonvärde 6000 Nm3/h.","Fläktdata m3/h","Flödet är antaget utifrån fläktdata.","Mätning av flöde",IF(Beräkningar!C88="","Flödet är uppmätt med varmtrådsgivare.","Flödet är uppmätt med pitotrör.")) -> Flödet är uppmätt med varmtrådsgivare.
B10: Momentant utsläpp och beräknad förlust (Nm3 CH4/h)
B11: CH4(utsläpp) | C11: ppm | D11: =Beräkningar!C86 -> 0
B12: Qutsläpp | C12: Nm3/h | D12: =Beräkningar!C100 -> 0
B13: Momentant utsläpp | C13: Nm3 CH4/h | D13: =Beräkningar!C101 -> 0
B14: Momentant metanflöde | C14: Nm3 CH4/h | F14: =Beräkningar!E102 -> 600 | H14: =Beräkningar!G102 -> 600
B15: Momentan förlust | C15: % | F15: =Beräkningar!E103 -> 0 | H15: =Beräkningar!G103 -> 0
B16: Beräknad kvantifiering av årliga utsläpp (Nm3 CH4/år)
B17: =_xlfn.SWITCH(Beräkningar!C104,"p","Utsläppet antas variera relativt produktionen i anläggningen","h","Utsläppet antas vara konstant under årets alla drifttimmar för anläggningen","d","Utsläppet antas vara konstant under delanläggningens/utsläppspunktens drifttimmar") -> Utsläppet antas vara konstant under årets alla drifttimmar för anläggningen
B19: Årligt utsläpp | C19: Nm3 CH4/år | F19: =Beräkningar!E105 -> 0 | H19: =Beräkningar!G105 -> 0
B20: Årligt metanflöde | C20: Nm3 CH4/år | F20: =Beräkningar!E106 -> 1000 | H20: =Beräkningar!G106 -> 60000
B21: Årlig förlust | C21: % | F21: =Beräkningar!E107 -> 0 | H21: =Beräkningar!G107 -> 0
B22: Förslag på åtgärd
B23: Läcksökning och åtgärdande av funna läckor.

Sheet Ventilation 4
B2: Identifikation av utsläppsobjekt | D2: Ev. lokal benämning/tag
B3: =Val!C12 -> 0 | D3: =IF(Val!E12="","-",Val!E12) -> -
B4: Beskrivning av utsläppsobjekt
B7: Beskrivning av mätningens genomförande
B8: =_xlfn.SWITCH(Beräkningar!E111,"online",CONCATENATE("Metanhalt är uppmätt kontinuerligt med FID under ",TEXT(Beräkningar!F112,0)," min."),"påsprov",CONCATENATE("Metanhalt är uppmätt med FID i påsprov med provtagningstid ",TEXT(Beräkningar!F112,0)," min")) -> Metanhalt är uppmätt kontinuerligt med FID under 0 min.
B9: =_xlfn.SWITCH(Beräkningar!E113,"Schablon 3000 Nm3/h","Flödet är satt till schablonvärde 3000 Nm3/h.","Schablon 6000 Nm3/h","Flödet är satt till schablonvärde 6000 Nm3/h.","Fläktdata m3/h","Flödet är antaget utifrån fläktdata.","Mätning av flöde",IF(Beräkningar!C113="","Flödet är uppmätt med varmtrådsgivare.","Flödet är uppmätt med pitotrör.")) -> Flödet är uppmätt med varmtrådsgivare.
B10: Momentant utsläpp och beräknad förlust (Nm3 CH4/h)
B11: CH4(utsläpp) | C11: ppm | D11: =Beräkningar!C111 -> 0
B12: Qutsläpp | C12: Nm3/h | D12: =Beräkningar!C125 -> 0
B13: Momentant utsläpp | C13: Nm3 CH4/h | D13: =Beräkningar!C126 -> 0
B14: Momentant metanflöde | C14: Nm3 CH4/h | F14: =Beräkningar!E127 -> 600 | H14: =Beräkningar!G127 -> 600
B15: Momentan förlust | C15: % | F15: =Beräkningar!E128 -> 0 | H15: =Beräkningar!G128 -> 0
B16: Beräknad kvantifiering av årliga utsläpp (Nm3 CH4/år)
B17: =_xlfn.SWITCH(Beräkningar!C129,"p","Utsläppet antas variera relativt produktionen i anläggningen","h","Utsläppet antas vara konstant under årets alla drifttimmar för anläggningen","d","Utsläppet antas vara konstant under delanläggningens/utsläppspunktens drifttimmar") -> Utsläppet antas vara konstant under årets alla drifttimmar för anläggningen
B19: Årligt utsläpp | C19: Nm3 CH4/år | F19: =Beräkningar!E130 -> 0 | H19: =Beräkningar!G130 -> 0
B20: Årligt metanflöde | C20: Nm3 CH4/år | F20: =Beräkningar!E131 -> 1000 | H20: =Beräkningar!G131 -> 60000
B21: Årlig förlust | C21: % | F21: =Beräkningar!E132 -> 0 | H21: =Beräkningar!G132 -> 0
B22: Förslag på åtgärd
B23: Läcksökning och åtgärdande av funna läckor.

Sheet Ventilation 5
B2: Identifikation av utsläppsobjekt | D2: Ev. lokal benämning/tag
B3: =Val!C13 -> 0 | D3: =IF(Val!E13="","-",Val!E13) -> -
B4: Beskrivning av utsläppsobjekt
B7: Beskrivning av mätningens genomförande
B8: =_xlfn.SWITCH(Beräkningar!E136,"online",CONCATENATE("Metanhalt är uppmätt kontinuerligt med FID under ",TEXT(Beräkningar!F137,0)," min."),"påsprov",CONCATENATE("Metanhalt är uppmätt med FID i påsprov med provtagningstid ",TEXT(Beräkningar!F137,0)," min")) -> Metanhalt är uppmätt kontinuerligt med FID under 0 min.
B9: =_xlfn.SWITCH(Beräkningar!E138,"Schablon 3000 Nm3/h","Flödet är satt till schablonvärde 3000 Nm3/h.","Schablon 6000 Nm3/h","Flödet är satt till schablonvärde 6000 Nm3/h.","Fläktdata m3/h","Flödet är antaget utifrån fläktdata.","Mätning av flöde",IF(Beräkningar!C138="","Flödet är uppmätt med varmtrådsgivare.","Flödet är uppmätt med pitotrör.")) -> Flödet är uppmätt med varmtrådsgivare.
B10: Momentant utsläpp och beräknad förlust (Nm3 CH4/h)
B11: CH4(utsläpp) | C11: ppm | D11: =Beräkningar!C136 -> 0
B12: Qutsläpp | C12: Nm3/h | D12: =Beräkningar!C150 -> 0
B13: Momentant utsläpp | C13: Nm3 CH4/h | D13: =Beräkningar!C151 -> 0
B14: Momentant metanflöde | C14: Nm3 CH4/h | F14: =Beräkningar!E152 -> 600 | H14: =Beräkningar!G152 -> 600
B15: Momentan förlust | C15: % | F15: =Beräkningar!E153 -> 0 | H15: =Beräkningar!G153 -> 0
B16: Beräknad kvantifiering av årliga utsläpp (Nm3 CH4/år)
B17: =_xlfn.SWITCH(Beräkningar!C154,"p","Utsläppet antas variera relativt produktionen i anläggningen","h","Utsläppet antas vara konstant under årets alla drifttimmar för anläggningen","d","Utsläppet antas vara konstant under delanläggningens/utsläppspunktens drifttimmar") -> Utsläppet antas vara konstant under årets alla drifttimmar för anläggningen
B19: Årligt utsläpp | C19: Nm3 CH4/år | F19: =Beräkningar!E155 -> 0 | H19: =Beräkningar!G155 -> 0
B20: Årligt metanflöde | C20: Nm3 CH4/år | F20: =Beräkningar!E156 -> 1000 | H20: =Beräkningar!G156 -> 60000
B21: Årlig förlust | C21: % | F21: =Beräkningar!E157 -> 0 | H21: =Beräkningar!G157 -> 0
B22: Förslag på åtgärd
B23: Läcksökning och åtgärdande av funna läckor.

Sheet Metanslip
B2: Identifikation av utsläppsobjekt | D2: Ev. lokal benämning/tag
B3: =Val!C14 -> 0 | D3: =IF(Val!E14="","-",Val!E14) -> -
B4: Beskrivning av utsläppsobjekt
B7: Beskrivning av mätningens genomförande
B8: =_xlfn.SWITCH(Beräkningar!E161,"online",CONCATENATE("Metanhalt är uppmätt kontinuerligt med FID under ",TEXT(Beräkningar!F162,0)," min."),"påsprov",CONCATENATE("Metanhalt är uppmätt med FID i påsprov med provtagningstid ",TEXT(Beräkningar!F162,0)," min")) -> Metanhalt är uppmätt kontinuerligt med FID under 0 min.
B9: =IF(Beräkningar!C159="u",IF(Beräkningar!C163="","Flödet är uppmätt med varmtrådsgivare.","Flödet är uppmätt med pitotrör."),IF(Beräkningar!C159="b","Flödet beräknas utifrån anläggningens angivna rengasflöde och metanhalter.","-")) -> Flödet är uppmätt med pitotrör.
B10: Momentant utsläpp och beräknad förlust (Nm3 CH4/h)
B11: CH4(utsläpp) | C11: ppm | D11: =Beräkningar!C161 -> 1000
B12: Qutsläpp | C12: Nm3/h | D12: =IF(Beräkningar!C159="u",Beräkningar!C175,IF(Beräkningar!C159="b",Beräkningar!J6,"-")) -> 78.72225518
B13: Momentant utsläpp | C13: Nm3 CH4/h | D13: =Beräkningar!C176 -> 0.07872225518
B14: Momentant metanflöde | C14: Nm3 CH4/h | F14: =Beräkningar!E177 -> 600 | H14: =Beräkningar!G177 -> 600
B15: Momentan förlust | C15: % | F15: =Beräkningar!E178 -> 0.01312037586 | H15: =Beräkningar!G178 -> 0.01312037586
B16: Beräknad kvantifiering av årliga utsläpp (Nm3 CH4/år)
B17: =_xlfn.SWITCH(Beräkningar!C179,"p","Utsläppet antas variera relativt produktionen i anläggningen","h","Utsläppet antas vara konstant under årets alla drifttimmar för anläggningen","d","Utsläppet antas vara konstant under delanläggningens/utsläppspunktens drifttimmar") -> Utsläppet antas variera relativt produktionen i anläggningen
B19: Årligt utsläpp | C19: Nm3 CH4/år | F19: =Beräkningar!E180 -> 0.1312037586 | H19: =Beräkningar!G180 -> 7.872225518
B20: Årligt metanflöde | C20: Nm3 CH4/år | F20: =Beräkningar!E181 -> 1000 | H20: =Beräkningar!G181 -> 60000
B21: Årlig förlust | C21: % | F21: =Beräkningar!E182 -> 0.01312037586 | H21: =Beräkningar!G182 -> 0.01312037586
B22: Förslag på åtgärd

Sheet Utsläpp år 1
B2: Identifikation av utsläppsobjekt | D2: Ev. lokal benämning/tag
B3: =Val!C15 -> 0 | D3: =IF(Val!E15="","-",Val!E15) -> -
B4: Beskrivning av utsläppsobjekt
B7: Beskrivning av mätningens genomförande
B10: Momentant utsläpp och beräknad förlust (Nm3 CH4/h)
B11: =IF(Beräkningar!C187="p","Utsläppet antas variera relativt produktionen i anläggningen",IF(Beräkningar!C187="h","Utsläppet antas vara konstant över årets alla drifttimmar","Görs ej")) -> Görs ej
B13: Momentant utsläpp | C13: Nm3 CH4/h | F13: =Beräkningar!E188 -> 0 | H13: =Beräkningar!G188 -> 0
B14: Momentant metanflöde | C14: Nm3 CH4/h | F14: =Beräkningar!E189 -> 600 | H14: =Beräkningar!G189 -> 600
B15: Momentan förlust | C15: % | F15: =Beräkningar!E190 -> 0 | H15: =Beräkningar!G190 -> 0
B16: Beräknad kvantifiering av årliga utsläpp (Nm3 CH4/år)
B19: Årligt utsläpp | C19: Nm3 CH4/år | F19: =Beräkningar!E192 -> 0 | H19: =Beräkningar!G192 -> 0
B20: Årligt metanflöde | C20: Nm3 CH4/år | F20: =Beräkningar!E193 -> 1000 | H20: =Beräkningar!G193 -> 60000
B21: Årlig förlust | C21: % | F21: =Beräkningar!E194 -> 0 | H21: =Beräkningar!G194 -> 0
B22: Förslag på åtgärd

Sheet Utsläpp år 2
B2: Identifikation av utsläppsobjekt | D2: Ev. lokal benämning/tag
B3: =Val!C16 -> 0 | D3: =IF(Val!E16="","-",Val!E16) -> -
B4: Beskrivning av utsläppsobjekt
B7: Beskrivning av mätningens genomförande
B10: Momentant utsläpp och beräknad förlust (Nm3 CH4/h)
B11: =IF(Beräkningar!C199="p","Utsläppet antas variera relativt produktionen i anläggningen",IF(Beräkningar!C199="h","Utsläppet antas vara konstant över årets alla drifttimmar","Görs ej")) -> Görs ej
B13: Momentant utsläpp | C13: Nm3 CH4/h | F13: =Beräkningar!E200 -> 0 | H13: =Beräkningar!G200 -> 0
B14: Momentant metanflöde | C14: Nm3 CH4/h | F14: =Beräkningar!E201 -> 600 | H14: =Beräkningar!G201 -> 600
B15: Momentan förlust | C15: % | F15: =Beräkningar!E202 -> 0 | H15: =Beräkningar!G202 -> 0
B16: Beräknad kvantifiering av årliga utsläpp (Nm3 CH4/år)
B19: Årligt utsläpp | C19: Nm3 CH4/år | F19: =Beräkningar!E204 -> 0 | H19: =Beräkningar!G204 -> 0
B20: Årligt metanflöde | C20: Nm3 CH4/år | F20: =Beräkningar!E205 -> 1000 | H20: =Beräkningar!G205 -> 60000
B21: Årlig förlust | C21: % | F21: =Beräkningar!E206 -> 0 | H21: =Beräkningar!G206 -> 0
B22: Förslag på åtgärd

Sheet Utsläpp h 1
B2: Identifikation av utsläppsobjekt | D2: Ev. lokal benämning/tag
B3: =Val!C17 -> 0 | D3: =IF(Val!E17="","-",Val!E17) -> -
B4: Beskrivning av utsläppsobjekt
B7: Beskrivning av mätningens genomförande
B10: Momentant utsläpp och beräknad förlust (Nm3 CH4/h)
B13: Momentant utsläpp | C13: Nm3 CH4/h | D13: =Beräkningar!C212 -> 0
B14: Momentant metanflöde | C14: Nm3 CH4/h | F14: =Beräkningar!E213 -> 600 | H14: =Beräkningar!G213 -> 600
B15: Momentan förlust | C15: % | F15: =Beräkningar!E214 -> 0 | H15: =Beräkningar!G214 -> 0
B16: Beräknad kvantifiering av årliga utsläpp (Nm3 CH4/år)
B17: =_xlfn.SWITCH(Beräkningar!C215,"p","Utsläppet antas variera relativt produktionen i anläggningen","h","Utsläppet antas vara konstant under årets alla drifttimmar för anläggningen","d","Utsläppet antas vara konstant under delanläggningens/utsläppspunktens drifttimmar") -> Utsläppet antas vara konstant under årets alla drifttimmar för anläggningen
B19: Årligt utsläpp | C19: Nm3 CH4/år | F19: =Beräkningar!E216 -> 0 | H19: =Beräkningar!G216 -> 0
B20: Årligt metanflöde | C20: Nm3 CH4/år | F20: =Beräkningar!E217 -> 1000 | H20: =Beräkningar!G217 -> 60000
B21: Årlig förlust | C21: % | F21: =Beräkningar!E218 -> 0 | H21: =Beräkningar!G218 -> 0
B22: Förslag på åtgärd

Sheet Utsläpp h 2
B2: Identifikation av utsläppsobjekt | D2: Ev. lokal benämning/tag
B3: =Val!C18 -> 0 | D3: =IF(Val!E18="","-",Val!E18) -> -
B4: Beskrivning av utsläppsobjekt
B7: Beskrivning av mätningens genomförande
B10: Momentant utsläpp och beräknad förlust (Nm3 CH4/h)
B13: Momentant utsläpp | C13: Nm3 CH4/h | D13: =Beräkningar!C224 -> 0
B14: Momentant metanflöde | C14: Nm3 CH4/h | F14: =Beräkningar!E225 -> 600 | H14: =Beräkningar!G225 -> 600
B15: Momentan förlust | C15: % | F15: =Beräkningar!E226 -> 0 | H15: =Beräkningar!G226 -> 0
B16: Beräknad kvantifiering av årliga utsläpp (Nm3 CH4/år)
B17: =_xlfn.SWITCH(Beräkningar!C227,"p","Utsläppet antas variera relativt produktionen i anläggningen","h","Utsläppet antas vara konstant under årets alla drifttimmar för anläggningen","d","Utsläppet antas vara konstant under delanläggningens/utsläppspunktens drifttimmar") -> Utsläppet antas vara konstant under årets alla drifttimmar för anläggningen
B19: Årligt utsläpp | C19: Nm3 CH4/år | F19: =Beräkningar!E228 -> 0 | H19: =Beräkningar!G228 -> 0
B20: Årligt metanflöde | C20: Nm3 CH4/år | F20: =Beräkningar!E229 -> 1000 | H20: =Beräkningar!G229 -> 60000
B21: Årlig förlust | C21: % | F21: =Beräkningar!E230 -> 0 | H21: =Beräkningar!G230 -> 0
B22: Förslag på åtgärd

Sheet Bilaga
B2: Årsutsläpp
B3: Uppmätta utsläppsmängder gäller vid mätningens genomförande. Tre olika principer används för att
B4: skala upp de momentant uppmätta utsläppen till att gälla årliga utsläpp:
B6: p | C6: Utsläppet varierar relativt gasproduktionen i anläggningen
C8: Den momentana förlusten i procent beräknas vid mätningstillfället relativt
C9: den aktuella gasproduktionen i anläggningen. Den momentanta förlusten
C10: antas vara samma som den årliga förlusten, i procent.
B12: h | C12: Konstant utsläpp under hela anläggningens årliga drifttimmar
C14: Det uppmätta momentana utsläppet (Nm3/h) antas gälla under årets alla
C15: drifttimmar. Utsläppet antas därmed ej vara beroende av gasproduktionen.
B17: d | C17: Konstant utsläpp under delanläggningens årliga drifttimmar
C19: Det uppmätta momentana utsläppet (Nm3/h) antas gälla under årets alla
C20: drifttimmar för den aktuella delanläggningen/utsläppspunkten. Utsläppet
C21: antas därmed ej vara beroende av gasproduktionen.
B23: Tillämpad princip anges i respektive resultatsammanställning i rapporten.
B25: Mätosäkerhet
B26: Mätosäkerheterna varierar till stor grad mellan olika utsläppspunkter och anläggningar och är bland
B27: annat beroende av raksträckor vid mätpunkterna, flödesprofilen, analysinstrumenten, kalibrergaser,
B28: interferenser med andra ämnen etc. En stor osäkerhetskälla är också den tidsmässiga variationen i
B29: utsläpp i respektive mätpunkt.
B31: Specifika kommentarer kring den aktuella mätningen

Sheet Protokoll 1
A2: Rapport utgåva | B2: ='Sid 1'!$C$3 -> 0 | C2: Anläggningsnamn: | E2: ='Sid 1'!$C$7 -> 0
A3: Rapport datum | B3: ='Sid 1'!$C$4 -> 00:00:00 | C3: Uppgraderingsteknik: | E3: ='Sid 1'!$C$9 -> 0
A4: Mätning datum | B4: ='Sid 1'!$C$22 -> 00:00:00 | C4: Mätföretag: | E4: ='Sid 1'!$C$16 -> 0
A5: [plats för logotyp mätföretag] | C5: Utförare: | E5: ='Sid 1'!$C$17 -> 0
C6: Telefon: | E6: ='Sid 1'!$C$18 -> 0
C7: E-post: | E7: ='Sid 1'!$C$19 -> 0
A9: Utsläpps- objekt | B9: Ev. lokal benämning/tag | D9: Skaln. | E9: Kvantifiering
E10: CH4 Nm3/år
A11: =Val!$C$8 -> 0 | B11: =IF(Val!$E$8="","",Val!$E$8) ->  | E11: =IF(Val!$C8<>"",Beräkningar!C30,"") -> 
A12: =Val!$C$9 -> 0 | B12: =IF(Val!$E$9="","",Val!$E$9) ->  | D12: =IF(Val!$C9<>"",Beräkningar!C54,"") ->  | E12: =IF(Val!$C9<>"",Beräkningar!G55,"") -> 
A13: =Val!$C$10 -> 0 | B13: =IF(Val!$E$10="","",Val!$E$10) ->  | D13: =IF(Val!$C10<>"",Beräkningar!C79,"") ->  | E13: =IF(Val!$C10<>"",Beräkningar!G80,"") -> 
A14: =Val!$C$11 -> 0 | B14: =IF(Val!$E$11="","",Val!$E$11) ->  | D14: =IF(Val!$C11<>"",Beräkningar!C104,"") ->  | E14: =IF(Val!$C11<>"",Beräkningar!G105,"") -> 
A15: =Val!$C$12 -> 0 | B15: =IF(Val!$E$12="","",Val!$E$12) ->  | D15: =IF(Val!$C12<>"",Beräkningar!C129,"") ->  | E15: =IF(Val!$C12<>"",Beräkningar!G130,"") -> 
A16: =Val!$C$13 -> 0 | B16: =IF(Val!$E$13="","",Val!$E$13) ->  | D16: =IF(Val!$C13<>"",Beräkningar!C154,"") ->  | E16: =IF(Val!$C13<>"",Beräkningar!G155,"") -> 
A17: =Val!$C$14 -> 0 | B17: =IF(Val!$E$14="","",Val!$E$14) ->  | D17: =IF(Val!$C14<>"",Beräkningar!C179,"") ->  | E17: =IF(Val!$C14<>"",Beräkningar!G180,"") -> 
A18: =Val!$C$15 -> 0 | B18: =IF(Val!$E$15="","",Val!$E$15) ->  | D18: =IF(Val!$C15<>"",Beräkningar!C187,"") ->  | E18: =IF(Val!$C15<>"",Beräkningar!G192,"") -> 
A19: =Val!$C$16 -> 0 | B19: =IF(Val!$E$16="","",Val!$E$16) ->  | D19: =IF(Val!$C16<>"",Beräkningar!C199,"") ->  | E19: =IF(Val!$C16<>"",Beräkningar!G204,"") -> 
A20: =Val!$C$17 -> 0 | B20: =IF(Val!$E$17="","",Val!$E$17) ->  | D20: =IF(Val!$C17<>"",Beräkningar!C215,"") ->  | E20: =IF(Val!$C17<>"",Beräkningar!G216,"") -> 
A21: =Val!$C$18 -> 0 | B21: =IF(Val!$E$18="","",Val!$E$18) ->  | D21: =IF(Val!$C18<>"",Beräkningar!C227,"") ->  | E21: =IF(Val!$C18<>"",Beräkningar!G228,"") -> 
A22: Summa utsläpp CH4 (Nm3/år) | E22: =SUM(E11:E21) -> 0
A23: Totalt metanflöde i anläggning (Nm3/år) | E23: =Beräkningar!G11+Beräkningar!G17 -> 60000
A24: Metanförlust (%) | E24: =(E22/E23)*100 -> 0
B26: Läcksökning
B27: Bolagets rutiner för läcksökning, samt utförandet enligt rutin, har granskats.
B28: Finns rutin? | C28: ='Sid 1'!C32 -> 0
B29: Intervall | C29: ='Sid 1'!C33 -> 0
B30: Utrustning | C30: ='Sid 1'!C34 -> 0
B31: Utfört enligt rutin? | C31: ='Sid 1'!C35 -> 0
C32: =IF('Sid 1'!C36="","",'Sid 1'!C36) -> 
B34: Härmed intygas att kvantifiering enligt föreskrivna riktlinjer i EgMet har ägt rum
B35: ='Sid 1'!C17 -> 0

Sheet Protokoll 2
A2: Rapport utgåva | B2: ='Sid 1'!$C$3 -> 0 | C2: Anläggningsnamn: | E2: ='Sid 1'!$C$7 -> 0
A3: Rapport datum | B3: ='Sid 1'!$C$4 -> 00:00:00 | C3: Uppgraderingsteknik: | E3: ='Sid 1'!$C$9 -> 0
A4: Mätning datum | B4: ='Sid 1'!$C$22 -> 00:00:00 | C4: Huvudman/ägare: | E4: ='Sid 1'!C10 -> 0
A5: [plats för logotyp huvudman/ägare] | C5: Kontaktperson: | E5: ='Sid 1'!$C$11 -> 0
C6: Telefon: | E6: ='Sid 1'!$C$12 -> 0
C7: E-post: | E7: ='Sid 1'!$C$13 -> 0
A9: Utsläpps- objekt | B9: Ev. lokal benämning/tag | D9: Planerad åtgärd
A11: =Val!$C$8 -> 0 | B11: =IF(Val!$E$8="","",Val!$E$8) -> 
A12: =Val!$C$9 -> 0 | B12: =IF(Val!$E$9="","",Val!$E$9) -> 
A13: =Val!$C$10 -> 0 | B13: =IF(Val!$E$10="","",Val!$E$10) -> 
A14: =Val!$C$11 -> 0 | B14: =IF(Val!$E$11="","",Val!$E$11) -> 
A15: =Val!$C$12 -> 0 | B15: =IF(Val!$E$12="","",Val!$E$12) -> 
A16: =Val!$C$13 -> 0 | B16: =IF(Val!$E$13="","",Val!$E$13) -> 
A17: =Val!$C$14 -> 0 | B17: =IF(Val!$E$14="","",Val!$E$14) -> 
A18: =Val!$C$15 -> 0 | B18: =IF(Val!$E$15="","",Val!$E$15) -> 
A19: =Val!$C$16 -> 0 | B19: =IF(Val!$E$16="","",Val!$E$16) -> 
A20: =Val!$C$17 -> 0 | B20: =IF(Val!$E$17="","",Val!$E$17) -> 
A21: =Val!$C$18 -> 0 | B21: =IF(Val!$E$18="","",Val!$E$18) -> 
A22: Summa utsläpp CH4 (Nm3/år) | E22: ='Protokoll 1'!E22 -> 0
A23: Totalt metanflöde i anläggning (Nm3/år) | E23: ='Protokoll 1'!E23 -> 60000
A24: Metanförlust (%) | E24: =(E22/E23)*100 -> 0
A25: Mål metanförlust (%)
B27: Härmed intygas att vi tagit del av mätresultaten och planerar för åtgärder enligt ovan
B28: ='Sid 1'!C11 -> 0
B30: Instruktion: Fyll i era åtgärder och mål, sänd sedan Bilaga 2a och 2b till kansli@egmet.se
